[Event "Live Chess"]
[Site "Chess.com"]
[Date "2023.05.21"]
[Round "-"]
[White "siddu198"]
[Black "HadesLearmonth"]
[Result "0-1"]
[WhiteElo "1622"]
[BlackElo "1204"]
[TimeControl "300"]
[EndTime "6:20:03 PDT"]
[Termination "HadesLearmonth won by resignation"]

1. b4 {[%clk 0:04:56.8]} 1... e5 {[%clk 0:04:56.6]} 2. Bb2 {[%clk 0:04:56]} 2...
Nc6 {[%clk 0:04:51.6]} 3. e4 {[%clk 0:04:52.5]} 3... Bxb4 {[%clk 0:04:45.4]} 4.
Nf3 {[%clk 0:04:50]} 4... Qf6 {[%clk 0:04:38.8]} 5. Bb5 {[%clk 0:04:45.3]} 5...
d6 {[%clk 0:04:30.8]} 6. Bxc6+ {[%clk 0:04:42.3]} 6... bxc6 {[%clk 0:04:26.9]}
7. c3 {[%clk 0:04:40.9]} 7... Ba5 {[%clk 0:04:22.3]} 8. Na3 {[%clk 0:04:27.8]}
8... Ne7 {[%clk 0:04:20]} 9. Nc4 {[%clk 0:04:26.6]} 9... Bb6 {[%clk 0:04:16.7]}
10. d4 {[%clk 0:04:18.2]} 10... exd4 {[%clk 0:04:13.4]} 11. cxd4 {[%clk
0:04:16.7]} 11... d5 {[%clk 0:04:12.6]} 12. exd5 {[%clk 0:03:45.9]} 12... cxd5
{[%clk 0:04:07.4]} 13. Nce5 {[%clk 0:03:37.6]} 13... O-O {[%clk 0:04:01.2]} 14.
h3 {[%clk 0:03:31.1]} 14... Ba6 {[%clk 0:03:48.4]} 15. Nd7 {[%clk 0:03:20.5]}
15... Qe6+ {[%clk 0:03:41.3]} 16. Nfe5 {[%clk 0:03:18.3]} 16... Rfe8 {[%clk
0:03:34.2]} 17. Qf3 {[%clk 0:03:03.5]} 17... f6 {[%clk 0:03:25.8]} 18. Nxf6+
{[%clk 0:02:40]} 18... gxf6 {[%clk 0:03:12.6]} 19. Qg3+ {[%clk 0:02:39.9]} 19...
Kh8 {[%clk 0:03:07.7]} 20. Kd2 {[%clk 0:02:32.6]} 20... fxe5 {[%clk 0:03:06.3]}
21. Rhe1 {[%clk 0:02:29.9]} 21... Ba5+ {[%clk 0:03:02.9]} 22. Kc2 {[%clk
0:02:28.4]} 22... Bxe1 {[%clk 0:03:01.7]} 23. Rxe1 {[%clk 0:02:28.1]} 23... Qc6+
{[%clk 0:02:59.4]} 24. Kb1 {[%clk 0:02:26.9]} 24... Rg8 {[%clk 0:02:50]} 25.
Qxe5+ {[%clk 0:02:20.2]} 25... Rg7 {[%clk 0:02:41]} 26. Re3 {[%clk 0:02:11.5]}
26... Ng6 {[%clk 0:02:33.1]} 27. Qg3 {[%clk 0:01:56.2]} 27... Rb8 {[%clk
0:02:27.3]} 28. Ka1 {[%clk 0:01:41.2]} 28... Qb5 {[%clk 0:02:22.7]} 29. Rb3
{[%clk 0:01:26.4]} 29... Qf1+ {[%clk 0:02:15.6]} 0-1

[Event "Live Chess"]
[Site "Chess.com"]
[Date "2023.05.21"]
[Round "-"]
[White "nigelst"]
[Black "mattihelenius2"]
[Result "1-0"]
[WhiteElo "1696"]
[BlackElo "491"]
[TimeControl "300"]
[EndTime "6:20:12 PDT"]
[Termination "nigelst won by resignation"]

1. e4 {[%clk 0:04:58.2]} 1... b6 {[%clk 0:04:54.5]} 2. d4 {[%clk 0:04:55.6]}
2... Bb7 {[%clk 0:04:53.5]} 3. Nc3 {[%clk 0:04:54.9]} 3... Nf6 {[%clk
0:04:48.8]} 4. Bd3 {[%clk 0:04:51.5]} 4... Nc6 {[%clk 0:04:47.7]} 5. Nf3 {[%clk
0:04:50]} 5... e5 {[%clk 0:04:42.3]} 6. d5 {[%clk 0:04:48]} 6... Nd4 {[%clk
0:04:40.4]} 7. Nxd4 {[%clk 0:04:44.9]} 7... exd4 {[%clk 0:04:37.9]} 8. Ne2
{[%clk 0:04:44.5]} 8... Bc5 {[%clk 0:04:29.8]} 9. O-O {[%clk 0:04:42.4]} 9...
Qe7 {[%clk 0:04:27.1]} 10. Bg5 {[%clk 0:04:38.4]} 10... O-O-O {[%clk 0:04:26.2]}
11. a4 {[%clk 0:04:29.7]} 11... Qe5 {[%clk 0:04:20.1]} 12. Bf4 {[%clk 0:04:25]}
12... Qe7 {[%clk 0:04:14.3]} 13. a5 {[%clk 0:04:21.9]} 13... Ng4 {[%clk
0:04:05.4]} 14. Ng3 {[%clk 0:04:10]} 14... Qh4 {[%clk 0:04:03.3]} 15. Nf5 {[%clk
0:04:00.4]} 15... Qxh2+ {[%clk 0:04:00.3]} 16. Bxh2 {[%clk 0:03:58.1]} 1-0

[Event "Live Chess"]
[Site "Chess.com"]
[Date "2023.05.21"]
[Round "-"]
[White "Vitalii18a"]
[Black "ProfPoisson"]
[Result "0-1"]
[WhiteElo "1128"]
[BlackElo "1215"]
[TimeControl "300"]
[EndTime "6:20:25 PDT"]
[Termination "ProfPoisson won - game abandoned"]

1. e4 {[%clk 0:04:56.2]} 1... e5 {[%clk 0:04:57.1]} 2. Nf3 {[%clk 0:04:53.3]}
2... Nf6 {[%clk 0:04:53.9]} 3. Bd3 {[%clk 0:04:46.4]} 3... c6 {[%clk 0:04:43.2]}
4. c3 {[%clk 0:04:45]} 4... d5 {[%clk 0:04:38.1]} 5. exd5 {[%clk 0:04:41]} 5...
cxd5 {[%clk 0:04:34.5]} 6. Nxe5 {[%clk 0:04:34.3]} 6... Bd6 {[%clk 0:04:28.3]}
7. f4 {[%clk 0:04:27.6]} 7... Qb6 {[%clk 0:04:19.5]} 8. Bc2 {[%clk 0:04:04.3]}
8... Bxe5 {[%clk 0:04:10.3]} 9. fxe5 {[%clk 0:04:01.7]} 9... Bg4 {[%clk
0:04:07.3]} 10. exf6 {[%clk 0:03:39.4]} 10... Bxd1 {[%clk 0:04:04.3]} 11. fxg7
{[%clk 0:03:33.7]} 11... Rg8 {[%clk 0:04:00.9]} 0-1

[Event "Live Chess"]
[Site "Chess.com"]
[Date "2023.05.21"]
[Round "-"]
[White "lateforthesky"]
[Black "Olisingapore"]
[Result "0-1"]
[WhiteElo "2110"]
[BlackElo "1784"]
[TimeControl "300"]
[EndTime "6:20:27 PDT"]
[Termination "Olisingapore won by resignation"]

1. e4 {[%clk 0:04:58.4]} 1... c5 {[%clk 0:04:47.1]} 2. Nf3 {[%clk 0:04:56.8]}
2... d6 {[%clk 0:04:45.6]} 3. Nc3 {[%clk 0:04:54.7]} 3... Nf6 {[%clk 0:04:44.8]}
4. e5 {[%clk 0:04:53.2]} 4... dxe5 {[%clk 0:04:43]} 5. Nxe5 {[%clk 0:04:52.4]}
5... a6 {[%clk 0:04:23.1]} 6. a4 {[%clk 0:04:41.4]} 6... Qc7 {[%clk 0:04:17.8]}
7. Qe2 {[%clk 0:04:37]} 7... e6 {[%clk 0:04:15.6]} 8. d3 {[%clk 0:04:20.7]} 8...
Nc6 {[%clk 0:03:56]} 9. Nxc6 {[%clk 0:04:15.4]} 9... Qxc6 {[%clk 0:03:55.9]} 10.
Bf4 {[%clk 0:03:59.2]} 10... Bd6 {[%clk 0:03:53]} 11. Bxd6 {[%clk 0:03:57.7]}
11... Qxd6 {[%clk 0:03:52.9]} 12. Ne4 {[%clk 0:03:53.1]} 12... Nxe4 {[%clk
0:03:51]} 13. Qxe4 {[%clk 0:03:51.6]} 13... O-O {[%clk 0:03:49.3]} 14. g3 {[%clk
0:03:48.1]} 14... Bd7 {[%clk 0:03:48.6]} 15. f3 {[%clk 0:03:38.5]} 15... Bc6
{[%clk 0:03:46.6]} 16. Qe3 {[%clk 0:03:37.7]} 16... b5 {[%clk 0:03:42.5]} 17.
Bg2 {[%clk 0:03:30.5]} 17... bxa4 {[%clk 0:03:35.6]} 18. O-O {[%clk 0:03:28.5]}
18... Rfb8 {[%clk 0:03:32.5]} 19. Ra2 {[%clk 0:03:22.9]} 19... Bd5 {[%clk
0:03:22.3]} 20. c4 {[%clk 0:03:21]} 20... Bc6 {[%clk 0:03:18.3]} 21. f4 {[%clk
0:03:17.3]} 21... Rb3 {[%clk 0:03:15.4]} 22. Rd1 {[%clk 0:03:03.4]} 22... Bxg2
{[%clk 0:02:58.4]} 23. Kxg2 {[%clk 0:03:01.6]} 23... Rab8 {[%clk 0:02:56.3]} 24.
Rd2 {[%clk 0:02:59.3]} 24... Qc6+ {[%clk 0:02:43.5]} 25. Qf3 {[%clk 0:02:58.1]}
25... Qxf3+ {[%clk 0:02:25.5]} 26. Kxf3 {[%clk 0:02:57.4]} 26... R8b4 {[%clk
0:02:19.7]} 27. Ke4 {[%clk 0:02:56]} 27... f6 {[%clk 0:02:15.6]} 28. Rc2 {[%clk
0:02:46.2]} 28... Kf7 {[%clk 0:02:12.8]} 29. d4 {[%clk 0:02:44.9]} 29... f5+
{[%clk 0:02:06.6]} 30. Ke5 {[%clk 0:02:38.3]} 30... Re3+ {[%clk 0:02:05.4]} 31.
Kd6 {[%clk 0:02:37.2]} 31... cxd4 {[%clk 0:02:02.6]} 32. c5 {[%clk 0:02:36.1]}
32... d3 {[%clk 0:01:58.7]} 33. Rd2 {[%clk 0:02:35.1]} 33... Rd4+ {[%clk
0:01:55.9]} 34. Kc7 {[%clk 0:02:32.7]} 34... Re2 {[%clk 0:01:54.4]} 35. Rd1
{[%clk 0:02:31.2]} 35... d2 {[%clk 0:01:52.9]} 36. c6 {[%clk 0:02:29.1]} 36...
Re1 {[%clk 0:01:51.4]} 37. Raa1 {[%clk 0:02:28.4]} 37... Re2 {[%clk 0:01:23.2]}
38. Kb6 {[%clk 0:02:20]} 38... Ke7 {[%clk 0:01:18.7]} 39. Kxa6 {[%clk 0:02:18]}
39... Kd6 {[%clk 0:01:16]} 40. Kb5 {[%clk 0:02:07.6]} 40... Rxh2 {[%clk
0:01:00.4]} 41. Rxa4 {[%clk 0:02:02.1]} 41... Rxa4 {[%clk 0:00:55.5]} 42. Kxa4
{[%clk 0:02:01.3]} 42... Kxc6 {[%clk 0:00:55.1]} 43. Kb3 {[%clk 0:01:58.3]}
43... Kc5 {[%clk 0:00:48.9]} 44. Kc3 {[%clk 0:01:54.4]} 44... h6 {[%clk
0:00:46.4]} 45. Kd3 {[%clk 0:01:42.9]} 45... g5 {[%clk 0:00:39.9]} 46. fxg5
{[%clk 0:01:40.5]} 46... hxg5 {[%clk 0:00:39.8]} 47. Ke3 {[%clk 0:01:39.2]}
47... Kc4 {[%clk 0:00:36.3]} 0-1

[Event "Live Chess"]
[Site "Chess.com"]
[Date "2023.05.21"]
[Round "-"]
[White "raminguy"]
[Black "Tushinskiy"]
[Result "0-1"]
[WhiteElo "1942"]
[BlackElo "2219"]
[TimeControl "300"]
[EndTime "6:20:35 PDT"]
[Termination "Tushinskiy won by checkmate"]

1. d4 {[%clk 0:04:57.7]} 1... d5 {[%clk 0:04:55.1]} 2. Nc3 {[%clk 0:04:55.1]}
2... c6 {[%clk 0:04:55]} 3. e4 {[%clk 0:04:52.8]} 3... dxe4 {[%clk 0:04:53.7]}
4. Nxe4 {[%clk 0:04:51.8]} 4... Nf6 {[%clk 0:04:53.6]} 5. Nxf6+ {[%clk
0:04:48.6]} 5... gxf6 {[%clk 0:04:53.5]} 6. Nf3 {[%clk 0:04:47.6]} 6... Bf5
{[%clk 0:04:52.1]} 7. Bd3 {[%clk 0:04:43.7]} 7... Bg6 {[%clk 0:04:49.7]} 8. Bf4
{[%clk 0:04:38.7]} 8... Nd7 {[%clk 0:04:46.1]} 9. O-O {[%clk 0:04:34.9]} 9...
Qb6 {[%clk 0:04:44.7]} 10. Re1 {[%clk 0:04:24.7]} 10... e6 {[%clk 0:04:42.8]}
11. a4 {[%clk 0:04:13.7]} 11... a5 {[%clk 0:04:39.6]} 12. b3 {[%clk 0:04:04.6]}
12... Bb4 {[%clk 0:04:34.5]} 13. Bd2 {[%clk 0:03:51.8]} 13... Bxd3 {[%clk
0:04:31.2]} 14. Bxb4 {[%clk 0:03:43.6]} 14... Bxc2 {[%clk 0:04:29.8]} 15. Qxc2
{[%clk 0:03:17.4]} 15... Qxb4 {[%clk 0:04:27.8]} 16. Rad1 {[%clk 0:02:55.8]}
16... Nb6 {[%clk 0:04:14.5]} 17. Qe4 {[%clk 0:02:43.5]} 17... O-O-O {[%clk
0:04:10.9]} 18. Rc1 {[%clk 0:02:24.3]} 18... Nd5 {[%clk 0:04:06.6]} 19. Rc5
{[%clk 0:02:03.1]} 19... Rdg8 {[%clk 0:04:01]} 20. Rec1 {[%clk 0:01:56.2]} 20...
h5 {[%clk 0:03:58.3]} 21. R5c4 {[%clk 0:01:50.1]} 21... Qxb3 {[%clk 0:03:56.3]}
22. Nd2 {[%clk 0:01:29.2]} 22... Qb2 {[%clk 0:03:40.8]} 23. Qd3 {[%clk
0:01:11.8]} 23... Rxg2+ {[%clk 0:03:33.1]} 24. Kf1 {[%clk 0:00:58.4]} 24... Rhg8
{[%clk 0:03:30.1]} 25. Rxc6+ {[%clk 0:00:48.2]} 25... bxc6 {[%clk 0:03:27.9]}
26. Rxc6+ {[%clk 0:00:47.4]} 26... Kd7 {[%clk 0:03:08.6]} 27. Qa6 {[%clk
0:00:45.5]} 27... Rg1+ {[%clk 0:02:54.6]} 28. Ke2 {[%clk 0:00:42.9]} 28... Rb8
{[%clk 0:02:51.5]} 29. Rd6+ {[%clk 0:00:39.7]} 29... Ke7 {[%clk 0:02:49.1]} 30.
Qc6 {[%clk 0:00:32.7]} 30... Qb7 {[%clk 0:02:39]} 31. Qc5 {[%clk 0:00:19.8]}
31... Ke8 {[%clk 0:02:27.8]} 32. Ne4 {[%clk 0:00:15.7]} 32... Qb2+ {[%clk
0:02:24.8]} 33. Kf3 {[%clk 0:00:13.1]} 33... Qb3+ {[%clk 0:02:16]} 34. Ke2
{[%clk 0:00:08.3]} 34... Qd1# {[%clk 0:02:11.1]} 0-1

[Event "Live Chess"]
[Site "Chess.com"]
[Date "2023.05.21"]
[Round "-"]
[White "mliszewski"]
[Black "LiamClery2020"]
[Result "1/2-1/2"]
[WhiteElo "1802"]
[BlackElo "1962"]
[TimeControl "300"]
[EndTime "6:20:37 PDT"]
[Termination "Game drawn by agreement"]

1. d4 {[%clk 0:04:57.9]} 1... Nf6 {[%clk 0:04:59.3]} 2. Bg5 {[%clk 0:04:54.1]}
2... Ne4 {[%clk 0:04:57.2]} 3. h4 {[%clk 0:04:52.6]} 3... h6 {[%clk 0:04:52.7]}
4. Bf4 {[%clk 0:04:51.5]} 4... d5 {[%clk 0:04:48.6]} 5. Nd2 {[%clk 0:04:48.9]}
5... Nxd2 {[%clk 0:04:46.8]} 6. Qxd2 {[%clk 0:04:47.9]} 6... Bf5 {[%clk
0:04:43.7]} 7. e3 {[%clk 0:04:42.6]} 7... Nc6 {[%clk 0:04:40.4]} 8. f3 {[%clk
0:04:42.1]} 8... e6 {[%clk 0:04:35.8]} 9. g4 {[%clk 0:04:41]} 9... Bg6 {[%clk
0:04:34]} 10. Bd3 {[%clk 0:04:40.6]} 10... Bxd3 {[%clk 0:04:32.3]} 11. Qxd3
{[%clk 0:04:39.9]} 11... Bd6 {[%clk 0:04:31.1]} 12. a3 {[%clk 0:04:37.1]} 12...
Bxf4 {[%clk 0:04:29]} 13. exf4 {[%clk 0:04:37]} 13... Qd6 {[%clk 0:04:27.3]} 14.
Ne2 {[%clk 0:04:34.7]} 14... O-O-O {[%clk 0:04:24.9]} 15. O-O-O {[%clk
0:04:32.3]} 15... Ne7 {[%clk 0:04:20.7]} 16. Rhe1 {[%clk 0:04:24.6]} 16... Ng6
{[%clk 0:04:19.1]} 17. f5 {[%clk 0:04:22.6]} 17... Nxh4 {[%clk 0:04:15.9]} 18.
fxe6 {[%clk 0:04:21.2]} 18... fxe6 {[%clk 0:04:14.5]} 19. Rh1 {[%clk 0:04:03.8]}
19... Ng2 {[%clk 0:04:03]} 20. Qd2 {[%clk 0:03:55.5]} 20... Rhf8 {[%clk
0:03:59.3]} 21. Rdg1 {[%clk 0:03:49.7]} 21... Nf4 {[%clk 0:03:52.3]} 22. Ng3
{[%clk 0:03:46.4]} 22... Qa6 {[%clk 0:03:39.1]} 23. Re1 {[%clk 0:03:38.3]} 23...
Rd6 {[%clk 0:03:25.7]} 24. Nh5 {[%clk 0:03:35.7]} 24... Nxh5 {[%clk 0:03:19.5]}
25. Rxh5 {[%clk 0:03:28.1]} 25... Qc4 {[%clk 0:03:12.3]} 26. b3 {[%clk
0:03:15.8]} 26... Qa6 {[%clk 0:03:09.3]} 27. a4 {[%clk 0:03:13.2]} 27... Rxf3
{[%clk 0:03:05]} 28. g5 {[%clk 0:03:07.1]} 28... b6 {[%clk 0:02:58.1]} 29. gxh6
{[%clk 0:03:05.9]} 29... gxh6 {[%clk 0:02:57.1]} 30. Rxh6 {[%clk 0:03:04.2]}
30... Rf1 {[%clk 0:02:55.9]} 31. Kb2 {[%clk 0:02:41.2]} 31... Rf7 {[%clk
0:02:43.6]} 32. Rg1 {[%clk 0:02:38.7]} 32... Kb7 {[%clk 0:02:39.4]} 33. Rgg6
{[%clk 0:02:35.6]} 33... Re7 {[%clk 0:02:37.3]} 34. Rg8 {[%clk 0:02:30.5]} 34...
e5 {[%clk 0:02:28]} 35. Rhh8 {[%clk 0:02:29.7]} 35... Qa5 {[%clk 0:02:24.5]} 36.
Qg5 {[%clk 0:02:19.9]} 36... exd4 {[%clk 0:02:16.7]} 37. Qxe7 {[%clk 0:02:18.2]}
37... Qc3+ {[%clk 0:02:14.3]} 38. Kb1 {[%clk 0:02:14.8]} 38... d3 {[%clk
0:02:04.8]} 39. Rh2 {[%clk 0:01:48.7]} 39... dxc2+ {[%clk 0:01:58.1]} 40. Rxc2
{[%clk 0:01:47.3]} 40... Qxb3+ {[%clk 0:01:57.2]} 41. Rb2 {[%clk 0:01:45.9]}
41... Qd1+ {[%clk 0:01:53.7]} 42. Ka2 {[%clk 0:01:41.2]} 42... Qxa4+ {[%clk
0:01:53.6]} 43. Kb1 {[%clk 0:01:40.4]} 43... Qd1+ {[%clk 0:01:52.2]} 1/2-1/2

[Event "Live Chess"]
[Site "Chess.com"]
[Date "2023.05.21"]
[Round "-"]
[White "McSlash1"]
[Black "Leonid_Starozhilov"]
[Result "0-1"]
[WhiteElo "2005"]
[BlackElo "2636"]
[TimeControl "300"]
[EndTime "6:20:42 PDT"]
[Termination "Leonid_Starozhilov won by resignation"]

1. e4 {[%clk 0:04:58.9]} 1... c5 {[%clk 0:04:55.4]} 2. Nc3 {[%clk 0:04:57.7]}
2... e6 {[%clk 0:04:54.1]} 3. f4 {[%clk 0:04:57.3]} 3... d5 {[%clk 0:04:53.1]}
4. exd5 {[%clk 0:04:56.5]} 4... exd5 {[%clk 0:04:44.5]} 5. Bb5+ {[%clk
0:04:55.9]} 5... Nc6 {[%clk 0:04:43.2]} 6. Nf3 {[%clk 0:04:54.2]} 6... Nf6
{[%clk 0:04:40.9]} 7. d3 {[%clk 0:04:52.7]} 7... Bd6 {[%clk 0:04:39.2]} 8. O-O
{[%clk 0:04:50.4]} 8... O-O {[%clk 0:04:38]} 9. Qe1 {[%clk 0:04:47.1]} 9... Bg4
{[%clk 0:04:34]} 10. Ng5 {[%clk 0:04:43.1]} 10... Nd4 {[%clk 0:04:28.1]} 11. h3
{[%clk 0:04:32]} 11... Nxc2 {[%clk 0:04:25]} 12. Qh4 {[%clk 0:04:30.4]} 12...
Bf5 {[%clk 0:04:22.3]} 13. Nxd5 {[%clk 0:04:23.8]} 13... h6 {[%clk 0:04:17]} 14.
Nxf6+ {[%clk 0:04:21.9]} 14... Qxf6 {[%clk 0:04:15.7]} 15. g4 {[%clk 0:04:20.7]}
15... hxg5 {[%clk 0:04:07.1]} 16. fxg5 {[%clk 0:04:20.6]} 16... Qd4+ {[%clk
0:04:05.9]} 0-1

[Event "Live Chess"]
[Site "Chess.com"]
[Date "2023.05.21"]
[Round "-"]
[White "MartinWalker4"]
[Black "Conradical12"]
[Result "1-0"]
[WhiteElo "2050"]
[BlackElo "1586"]
[TimeControl "300"]
[EndTime "6:20:51 PDT"]
[Termination "MartinWalker4 won by resignation"]

1. e4 {[%clk 0:04:57]} 1... e5 {[%clk 0:04:59.4]} 2. Nf3 {[%clk 0:04:55]} 2...
Nc6 {[%clk 0:04:58.2]} 3. Bb5 {[%clk 0:04:53.5]} 3... Nf6 {[%clk 0:04:43.8]} 4.
d3 {[%clk 0:04:51.5]} 4... Bc5 {[%clk 0:04:40.2]} 5. O-O {[%clk 0:04:46.3]} 5...
O-O {[%clk 0:04:36.8]} 6. Bxc6 {[%clk 0:04:39.4]} 6... dxc6 {[%clk 0:04:32.8]}
7. Nxe5 {[%clk 0:04:38.1]} 7... Bd6 {[%clk 0:04:16.3]} 8. Nf3 {[%clk 0:04:34]}
8... Bg4 {[%clk 0:04:13]} 9. h3 {[%clk 0:04:32.1]} 9... Bxf3 {[%clk 0:04:07.7]}
10. Qxf3 {[%clk 0:04:30]} 10... Qe7 {[%clk 0:04:00.6]} 11. c3 {[%clk 0:04:15.8]}
11... Rad8 {[%clk 0:03:54.6]} 12. Nd2 {[%clk 0:04:07.2]} 12... Qe5 {[%clk
0:03:46.4]} 13. g3 {[%clk 0:04:04.6]} 13... Be7 {[%clk 0:03:37.2]} 14. d4 {[%clk
0:03:55.8]} 14... Qe6 {[%clk 0:03:31.4]} 15. Kg2 {[%clk 0:03:49.4]} 15... c5
{[%clk 0:03:25.3]} 16. d5 {[%clk 0:03:36.1]} 16... Qb6 {[%clk 0:03:11.6]} 17. b3
{[%clk 0:03:01]} 17... Bd6 {[%clk 0:02:57.7]} 18. Nc4 {[%clk 0:02:53.9]} 18...
Qa6 {[%clk 0:02:47.6]} 19. e5 {[%clk 0:02:49.7]} 19... b5 {[%clk 0:02:44.8]} 20.
Nxd6 {[%clk 0:02:41.2]} 20... cxd6 {[%clk 0:02:42.2]} 21. exf6 {[%clk
0:02:39.6]} 1-0

[Event "Live Chess"]
[Site "Chess.com"]
[Date "2023.05.21"]
[Round "-"]
[White "garyjc"]
[Black "Chesscoach_Golichenko"]
[Result "0-1"]
[WhiteElo "1035"]
[BlackElo "2630"]
[TimeControl "300"]
[EndTime "6:21:06 PDT"]
[Termination "Chesscoach_Golichenko won by resignation"]

1. e4 {[%clk 0:04:56.4]} 1... Nf6 {[%clk 0:04:57.6]} 2. Nc3 {[%clk 0:04:45.5]}
2... e5 {[%clk 0:04:47.5]} 3. Nf3 {[%clk 0:04:34.7]} 3... Nc6 {[%clk 0:04:45.3]}
4. Be2 {[%clk 0:04:23.6]} 4... d5 {[%clk 0:04:43.1]} 5. exd5 {[%clk 0:04:19.4]}
5... Nxd5 {[%clk 0:04:43]} 6. d3 {[%clk 0:04:03]} 6... Bb4 {[%clk 0:04:35.6]} 7.
Bd2 {[%clk 0:03:57.1]} 7... O-O {[%clk 0:04:32]} 8. O-O {[%clk 0:03:55.1]} 8...
Re8 {[%clk 0:04:26.6]} 9. a3 {[%clk 0:03:49]} 9... Bxc3 {[%clk 0:04:20.6]} 10.
bxc3 {[%clk 0:03:45.6]} 10... h6 {[%clk 0:04:17.9]} 11. Rb1 {[%clk 0:03:30.9]}
11... b6 {[%clk 0:04:12.7]} 12. d4 {[%clk 0:03:21.6]} 12... e4 {[%clk 0:04:08]}
13. Ne1 {[%clk 0:03:10.6]} 13... f5 {[%clk 0:04:01.8]} 14. c4 {[%clk 0:03:09.3]}
14... Nf6 {[%clk 0:03:58.5]} 15. c3 {[%clk 0:02:51.8]} 15... g5 {[%clk
0:03:50.3]} 16. Nc2 {[%clk 0:02:49.3]} 16... f4 {[%clk 0:03:48.5]} 17. Qc1
{[%clk 0:02:40.4]} 17... Qd6 {[%clk 0:03:30.7]} 18. f3 {[%clk 0:02:18.8]} 18...
e3 {[%clk 0:03:23.8]} 19. Be1 {[%clk 0:02:14.3]} 19... Bf5 {[%clk 0:03:23.2]}
20. Nb4 {[%clk 0:02:05]} 0-1

[Event "Live Chess"]
[Site "Chess.com"]
[Date "2023.05.21"]
[Round "-"]
[White "seabuck"]
[Black "diana21strabt"]
[Result "0-1"]
[WhiteElo "1878"]
[BlackElo "1766"]
[TimeControl "300"]
[EndTime "6:21:08 PDT"]
[Termination "diana21strabt won on time"]

1. d4 {[%clk 0:04:58.6]} 1... Nf6 {[%clk 0:04:58.7]} 2. c4 {[%clk 0:04:57.6]}
2... g6 {[%clk 0:04:57.7]} 3. Nc3 {[%clk 0:04:56.5]} 3... Bg7 {[%clk 0:04:57.1]}
4. e4 {[%clk 0:04:55.5]} 4... d6 {[%clk 0:04:56.3]} 5. Be2 {[%clk 0:04:54.5]}
5... Nbd7 {[%clk 0:04:55.6]} 6. Nf3 {[%clk 0:04:52.8]} 6... O-O {[%clk
0:04:54.7]} 7. O-O {[%clk 0:04:50.7]} 7... e5 {[%clk 0:04:53.7]} 8. dxe5 {[%clk
0:04:49.3]} 8... dxe5 {[%clk 0:04:52.2]} 9. Qc2 {[%clk 0:04:42]} 9... a5 {[%clk
0:04:48.8]} 10. Rd1 {[%clk 0:04:31.6]} 10... Qe7 {[%clk 0:04:45.7]} 11. Bg5
{[%clk 0:04:24.3]} 11... c6 {[%clk 0:04:42.3]} 12. h3 {[%clk 0:04:15.1]} 12...
h6 {[%clk 0:04:32.8]} 13. Be3 {[%clk 0:04:12.9]} 13... Nc5 {[%clk 0:04:29.2]}
14. a3 {[%clk 0:04:02.7]} 14... a4 {[%clk 0:04:24.8]} 15. Bxc5 {[%clk
0:03:49.5]} 15... Qxc5 {[%clk 0:04:23.4]} 16. Nxa4 {[%clk 0:03:47.5]} 16... Rxa4
{[%clk 0:04:21]} 17. Qxa4 {[%clk 0:03:43.8]} 17... Nxe4 {[%clk 0:04:18.4]} 18.
Rf1 {[%clk 0:03:24.8]} 18... Be6 {[%clk 0:04:07.4]} 19. b4 {[%clk 0:03:12.6]}
19... Qe7 {[%clk 0:04:01.1]} 20. Qc2 {[%clk 0:03:10]} 20... Bf5 {[%clk
0:03:58.5]} 21. Bd3 {[%clk 0:03:01.8]} 21... Nd6 {[%clk 0:03:54.7]} 22. Bxf5
{[%clk 0:02:40.8]} 22... Nxf5 {[%clk 0:03:53.1]} 23. Rae1 {[%clk 0:02:38.2]}
23... Qc7 {[%clk 0:03:48.6]} 24. Qe4 {[%clk 0:02:29.3]} 24... Nd6 {[%clk
0:03:30.7]} 25. Qc2 {[%clk 0:02:19.7]} 25... Re8 {[%clk 0:03:26.4]} 26. Re2
{[%clk 0:02:12.5]} 26... e4 {[%clk 0:03:15.9]} 27. Nd4 {[%clk 0:02:02]} 27...
Bxd4 {[%clk 0:03:13.7]} 28. Rd1 {[%clk 0:01:55.5]} 28... Bg7 {[%clk 0:02:59.5]}
29. c5 {[%clk 0:01:53.2]} 29... Nb5 {[%clk 0:02:55.7]} 30. Rxe4 {[%clk
0:01:44.5]} 30... Rxe4 {[%clk 0:02:54]} 31. Qxe4 {[%clk 0:01:42.6]} 31... Qe5
{[%clk 0:02:51.4]} 32. Rd8+ {[%clk 0:01:35.8]} 32... Kh7 {[%clk 0:02:49.6]} 33.
Qxe5 {[%clk 0:01:34.2]} 33... Bxe5 {[%clk 0:02:48.1]} 34. Rd7 {[%clk 0:01:22.4]}
34... Nxa3 {[%clk 0:02:46.2]} 35. Rxf7+ {[%clk 0:01:20.5]} 35... Kg8 {[%clk
0:02:42.7]} 36. Rxb7 {[%clk 0:01:19.8]} 36... Nc2 {[%clk 0:02:35.5]} 37. Rb6
{[%clk 0:01:16.7]} 37... Nd4 {[%clk 0:02:33.8]} 38. g3 {[%clk 0:01:09.2]} 38...
Bc7 {[%clk 0:02:30.9]} 39. Rb7 {[%clk 0:01:04.9]} 39... Ne6 {[%clk 0:02:27.7]}
40. b5 {[%clk 0:01:00.5]} 40... cxb5 {[%clk 0:02:25]} 41. Rxb5 {[%clk
0:00:58.7]} 41... Kf7 {[%clk 0:02:22.4]} 42. Rb7 {[%clk 0:00:54.2]} 42... Ke7
{[%clk 0:02:19.8]} 43. Kg2 {[%clk 0:00:53.2]} 43... Kd7 {[%clk 0:02:18.6]} 44.
Ra7 {[%clk 0:00:46.8]} 44... Nxc5 {[%clk 0:02:16.6]} 45. g4 {[%clk 0:00:43.9]}
45... Ne6 {[%clk 0:02:11.7]} 46. h4 {[%clk 0:00:38.2]} 46... Kd6 {[%clk
0:02:07.7]} 47. Ra6+ {[%clk 0:00:36.3]} 47... Ke5 {[%clk 0:02:06.4]} 48. Rc6
{[%clk 0:00:29.5]} 48... Bd6 {[%clk 0:02:01.7]} 49. h5 {[%clk 0:00:22.1]} 49...
gxh5 {[%clk 0:01:57.3]} 50. gxh5 {[%clk 0:00:20.9]} 50... Nf4+ {[%clk
0:01:56.5]} 51. Kf3 {[%clk 0:00:19.4]} 51... Nxh5 {[%clk 0:01:54.6]} 52. Kg4
{[%clk 0:00:18.5]} 52... Nf6+ {[%clk 0:01:52.9]} 53. Kh4 {[%clk 0:00:17.4]}
53... Kd5 {[%clk 0:01:49.5]} 54. Ra6 {[%clk 0:00:15.8]} 54... Ke5 {[%clk
0:01:45.3]} 55. f4+ {[%clk 0:00:14.4]} 55... Kd5 {[%clk 0:01:39.1]} 56. f5
{[%clk 0:00:13.1]} 56... Ke5 {[%clk 0:01:36.6]} 57. Ra5+ {[%clk 0:00:11.7]}
57... Ke4 {[%clk 0:01:28.6]} 58. Ra6 {[%clk 0:00:10.2]} 58... Be5 {[%clk
0:01:26.4]} 59. Re6 {[%clk 0:00:09.1]} 59... Kxf5 {[%clk 0:01:25]} 60. Re7
{[%clk 0:00:07.3]} 60... Bf4 {[%clk 0:01:21.2]} 61. Ra7 {[%clk 0:00:05.2]} 61...
Bg5+ {[%clk 0:01:19.9]} 62. Kh3 {[%clk 0:00:04.4]} 62... h5 {[%clk 0:01:17.9]}
63. Ra5+ {[%clk 0:00:02.7]} 63... Kg6 {[%clk 0:01:17]} 64. Ra8 {[%clk
0:00:01.2]} 64... Ne4 {[%clk 0:01:13.5]} 0-1